bitfinex/quotes_ETHUSD_20250715
["timestamp","ask_amount","ask_price","bid_price","bid_amount"]
[1752607517462,0.002,3081.5,3081.4,3.75247812]
[1752607517982,0.002,3081.5,3081.4,8.82247812]
[1752607518646,0.002,3081.5,3081.4,9.28857812]
[1752607519781,0.002,3081.5,3081.4,5.00827812]
[1752607519953,0.002,3081.5,3081.2,3.24543787]
[1752607520280,0.002,3081.5,3081.3,5.069]
[1752607520847,1.2607,3081.8,3081.3,8.31436776]
[1752607521193,0.4686,3081.7,3081.3,5.069]
[1752607521397,3.4686,3081.6,3081.3,5.069]
[1752607521551,0.4686,3081.5,3081.3,5.069]
[1752607522082,0.4686,3081.4,3081.0,3.24568164]
[1752607522291,0.4686,3081.4,3081.1,5.068]
[1752607523349,3.4686,3081.7,3081.1,8.3135933]
[1752607523588,3.4686,3081.7,3081.2,3.24543453]
[1752607523759,0.7921,3081.8,3081.4,3.24527812]
[1752607523967,3.0,3082.1,3081.6,3.24499805]
[1752607524199,1.2859,3082.3,3081.7,8.31289243]
[1752607524493,1.2859,3082.3,3081.8,8.3127942]
[1752607524494,0.8173,3082.3,3081.8,8.3127942]
[1752607524696,4.2859,3082.3,3081.8,8.31282546]
[1752607524978,4.2859,3082.3,3081.9,3.24473915]
[1752607525159,4.2859,3082.3,3082.0,5.068]
[1752607525984,4.53024039,3082.3,3082.0,5.068]
[1752607526166,1.2859,3082.3,3082.0,5.068]
[1752607526877,6.24627162,3082.4,3082.0,5.068]
[1752607527050,0.4686,3082.3,3082.0,5.068]
[1752607527251,0.4686,3082.2,3082.0,5.068]
[1752607528083,3.4686,3082.2,3082.0,5.068]
[1752607528587,3.71303915,3082.2,3082.0,5.068]
[1752607528774,0.4686,3082.2,3082.0,5.068]
[1752607529493,3.0,3081.9,3081.4,3.24522974]
[1752607529656,3.2450337,3081.7,3081.4,5.067]
[1752607530058,0.4686,3081.6,3081.4,5.067]
[1752607530273,3.4686,3081.7,3081.4,5.067]
[1752607530655,0.795,3082.3,3081.5,0.4661]
[1752607530851,3.24449929,3082.2,3081.7,3.24489295]
[1752607531058,3.0,3082.0,3081.8,5.066]
[1752607531459,3.4686,3082.1,3081.8,5.066]
[1752607531686,3.71314562,3082.1,3081.8,5.066]
[1752607531892,4.03934495,3082.3,3081.8,5.066]
[1752607531893,7.03938476,3082.3,3081.8,5.066]
[1752607532097,3.24456611,3082.1,3081.8,5.066]
[1752607532304,3.0,3082.0,3081.8,5.066]
[1752607532792,3.4686,3082.1,3081.8,5.066]
[1752607533962,0.4686,3082.1,3081.8,5.066]
[1752607534179,3.795,3082.3,3081.8,5.066]
[1752607534487,3.795,3082.3,3081.8,8.3108087]
[1752607534488,3.4706,3082.3,3081.8,8.3108087]
[1752607535198,0.4706,3082.3,3081.9,3.244674]
[1752607535378,0.4706,3082.3,3082.0,5.065]
[1752607535581,0.002,3082.3,3082.0,5.065]
[1752607536093,0.4706,3082.3,3082.0,5.065]
[1752607536403,3.24454105,3082.1,3082.0,5.065]
[1752607536575,3.0,3081.7,3081.3,3.24531804]
[1752607536891,3.24485824,3081.8,3081.4,5.065]
[1752607537395,3.71345824,3081.8,3081.4,5.065]
[1752607537582,3.4686,3081.8,3081.4,5.065]
[1752607538292,3.244983,3081.7,3081.4,5.065]
[1752607538471,0.4686,3081.6,3081.2,3.24547672]
[1752607538669,3.0,3081.9,3081.0,0.7756]
[1752607538870,3.0,3081.3,3081.0,0.001]
[1752607539191,3.24541451,3081.3,3081.0,5.065]
[1752607539383,0.4686,3081.2,3081.0,5.065]
[1752607539695,3.71414557,3081.2,3081.0,5.065]
[1752607540667,0.4686,3081.1,3081.0,0.001]
[1752607540987,0.7763453,3081.2,3081.0,0.001]
[1752607541179,3.24539385,3081.3,3081.0,0.001]
[1752607541385,3.0,3081.1,3081.0,0.001]
[1752607541782,3.0,3081.6,3081.0,0.001]
[1752607541993,0.8082,3081.8,3081.5,3.24510784]
[1752607542158,0.8082,3082.1,3081.6,8.308997]
[1752607542365,0.8082,3082.1,3081.6,8.7751206]
[1752607542608,3.8082,3082.1,3081.7,3.24490318]
[1752607542904,3.0,3082.2,3081.6,8.775119]
[1752607543373,3.71314105,3082.1,3081.6,5.064]
[1752607543563,3.0,3081.8,3081.6,5.064]
[1752607543884,6.71356219,3081.7,3081.6,5.064]
[1752607544064,3.4686,3081.7,3081.6,5.064]
[1752607544266,0.4686,3081.7,3081.4,5.063]
[1752607544585,0.4686,3081.6,3081.4,5.063]
[1752607544781,0.4686,3081.5,3081.0,0.001]
[1752607544995,0.4686,3081.5,3081.1,5.063]
[1752607545198,3.0,3081.4,3081.1,5.063]
[1752607545492,0.4361,3081.4,3081.1,5.063]
[1752607545693,6.24512074,3081.6,3081.2,3.24544502]
[1752607545694,3.0,3081.6,3081.2,3.24544502]
[1752607545895,3.0,3081.6,3081.1,8.75785007]
[1752607546063,3.0,3081.6,3081.1,3.69485007]
[1752607546269,7.49428517,3081.8,3081.2,5.063]
[1752607546615,4.2494,3081.8,3081.3,3.24531567]
[1752607546799,4.2494,3081.8,3081.2,5.063]
[1752607546800,3.0,3081.6,3081.2,5.063]
[1752607547000,3.68112896,3081.7,3081.2,5.063]
[1752607547001,0.4361,3081.7,3081.2,5.063]
[1752607547177,3.0,3081.6,3081.2,8.30844125]
[1752607547506,0.4361,3081.7,3081.3,3.24531915]
[1752607548621,3.0,3081.6,3081.2,8.30845781]
[1752607549238,0.4361,3081.7,3081.3,3.24537375]
[1752607549538,0.8183,3082.1,3081.3,2.01562481]
[1752607549825,0.8183,3082.1,3081.6,3.24498919]
[1752607549979,0.8183,3082.1,3081.7,5.062]
[1752607550318,1.2544,3082.1,3081.7,5.062]
[1752607550718,3.0,3082.0,3081.7,5.062]
[1752607551189,4.49896331,3082.1,3081.7,5.062]
[1752607551590,3.0,3081.9,3081.7,5.062]
[1752607552115,4.49897176,3082.1,3081.7,5.062]
[1752607552285,3.0,3082.0,3081.7,5.062]
[1752607552802,1.2544,3082.1,3081.7,5.062]
[1752607553300,3.24471091,3082.0,3081.7,5.062]
[1752607553501,4.49899359,3082.1,3081.7,5.062]
[1752607554215,0.4361,3082.1,3081.7,8.30696155]
[1752607554420,0.4361,3082.1,3081.7,5.062]
[1752607555825,3.0,3081.9,3081.7,5.062]
[1752607556123,6.2448569,3081.8,3081.7,5.062]
[1752607556322,6.6809569,3081.8,3081.7,5.062]
[1752607556632,3.6809569,3081.8,3081.5,5.06]
[1752607556796,3.0,3081.6,3081.5,5.06]
[1752607557710,3.24506749,3081.6,3081.5,5.06]
[1752607557914,7.48826749,3081.6,3081.5,5.06]
[1752607558624,3.24527812,3081.4,3081.3,0.001]
[1752607558999,7.05237812,3081.4,3081.3,0.001]
[1752607559201,38.03847812,3081.4,3081.3,0.001]
[1752607559404,3.2455941,3081.1,3081.0,0.001]
[1752607559629,23.15360297,3081.1,3081.0,0.001]
[1752607559806,23.58970297,3081.1,3081.0,0.001]
[1752607560124,24.13970297,3081.1,3081.0,0.001]
[1752607560429,3.24646505,3080.3,3080.0,0.001]
[1752607560630,3.24646505,3080.3,3080.0,5.06]
[1752607560815,6.68227856,3080.6,3080.0,8.30668813]
[1752607561001,3.0,3080.5,3080.1,3.24664783]
[1752607561395,3.0,3080.5,3080.2,3.24653062]
[1752607561600,0.002,3082.8,3080.3,4.45687945]
[1752607561601,1.20281718,3081.1,3080.3,4.45687945]
[1752607561828,3.24591044,3080.8,3080.3,1.2105]
[1752607562130,3.24591044,3080.8,3080.3,4.45693321]
[1752607562435,3.0,3080.6,3080.3,0.7612]
[1752607563011,3.0,3080.6,3080.3,5.059]
[1752607564538,3.0,3080.9,3080.3,5.5083]
[1752607564726,3.0,3080.7,3080.3,8.75469968]
[1752607564925,3.2458419,3080.9,3080.3,8.75469968]
[1752607565322,0.79806598,3081.5,3080.6,3.24604112]
[1752607565502,3.0,3080.9,3080.7,0.7858]
[1752607566334,3.0,3080.9,3080.5,4.48500274]
[1752607566508,6.24564223,3081.1,3080.6,3.2461076]
[1752607566707,6.24564223,3081.1,3080.5,4.48497815]
[1752607566908,6.68174223,3081.1,3080.6,3.2461108]
[1752607567108,6.68174223,3081.1,3080.5,4.48499465]
[1752607567329,3.0,3080.9,3080.5,4.48499465]
[1752607568041,3.0,3080.9,3080.5,1.2388]
[1752607568642,3.4361,3081.1,3080.5,4.48497044]
[1752607569064,6.68176204,3081.1,3080.5,4.48496969]
[1752607569353,3.0,3081.4,3080.5,2.06853748]
[1752607569558,4.03857141,3081.7,3080.6,4.51732283]
[1752607569767,4.03866249,3081.7,3081.1,4.00812572]
[1752607570058,3.0,3081.6,3081.2,3.2454605]
[1752607570254,1.25111505,3081.7,3081.2,3.24548877]
[1752607570408,0.002,3082.4,3081.3,0.4493]
[1752607570604,3.24469144,3082.0,3081.4,3.24518966]
[1752607570848,6.24510868,3081.6,3081.0,5.058]
[1752607571069,3.0,3081.3,3081.0,5.058]
[1752607571266,3.24556039,3081.2,3081.0,5.058]
[1752607571412,3.24543496,3081.3,3081.0,5.058]
[1752607572021,3.0,3081.3,3081.0,5.058]
[1752607572743,6.24544904,3081.3,3081.1,5.057]
[1752607572945,6.24544904,3081.3,3080.5,3.246209]
[1752607572946,4.1997,3081.2,3080.5,0.7625]
[1752607573258,3.24607733,3080.7,3080.3,5.057]
[1752607573958,3.0,3081.0,3080.3,5.057]
[1752607574122,3.0,3080.5,3080.3,5.057]
[1752607574446,3.24643946,3080.3,3080.0,0.8087]
[1752607574615,3.24643946,3080.3,3080.1,5.057]
[1752607574814,3.0,3080.3,3080.1,5.057]
[1752607575116,3.24645299,3080.3,3080.1,5.057]
[1752607575325,3.24654243,3080.2,3080.1,5.057]
[1752607576413,3.24643754,3080.3,3080.0,0.001]
[1752607576414,3.24664783,3080.1,3080.0,0.001]
[1752607576616,3.24664783,3080.1,3080.0,5.058]
[1752607576818,6.24661159,3080.2,3080.0,5.058]
[1752607577020,0.74785405,3080.5,3080.0,5.058]
[1752607577222,3.24655959,3080.2,3080.0,5.058]
[1752607577647,3.24664783,3080.1,3080.0,5.058]
[1752607577828,7.44014783,3080.1,3080.0,0.001]
[1752607578038,18.62383952,3080.1,3080.0,0.001]
[1752607578342,19.78077598,3080.1,3080.0,0.001]
[1752607580249,3.0,3080.1,3080.0,0.001]
[1752607581124,6.24664783,3080.1,3080.0,0.001]
[1752607581430,18.13323952,3080.1,3080.0,0.001]
[1752607582353,18.68323952,3080.1,3080.0,0.001]
[1752607583847,48.68323952,3080.1,3080.0,0.001]
[1752607584057,3.24770225,3079.1,3079.0,0.001]
[1752607584356,23.29769394,3079.1,3079.0,0.001]
[1752607584649,23.29769394,3079.1,3078.6,1e-08]
[1752607584650,7.6189187,3078.8,3078.6,1e-08]
[1752607584816,12.6749187,3078.8,3078.6,1e-08]
[1752607585017,14.74833134,3078.8,3078.6,1e-08]
[1752607585646,44.74833134,3078.8,3078.6,1e-08]
[1752607585851,44.91805942,3078.8,3078.6,1e-08]
[1752607587053,44.91905942,3078.8,3078.6,1e-08]
[1752607587254,39.86205942,3078.8,3078.6,1e-08]
[1752607587463,44.91905942,3078.8,3078.6,1e-08]
[1752607588345,7.6184242,3078.7,3078.6,1e-08]
[1752607588525,38.56942819,3078.7,3078.6,1e-08]
[1752607590161,7.61874074,3078.4,3077.5,0.001]
[1752607590358,51.2246914,3078.4,3077.5,0.001]
[1752607590726,51.6620914,3078.4,3078.3,1e-08]
[1752607592672,42.56314074,3078.4,3078.3,1e-08]
[1752607592833,14.19915338,3078.4,3078.3,1e-08]
[1752607593041,14.74915338,3078.4,3078.3,1e-08]
[1752607593242,53.29810404,3078.4,3078.3,1e-08]
[1752607595659,4.55829632,3077.4,3077.3,0.001]
[1752607595856,12.61629632,3077.4,3077.3,0.001]
[1752607596058,13.56730031,3077.4,3077.3,0.001]
[1752607596381,13.12990031,3077.4,3077.3,0.001]
[1752607597082,12.37110031,3077.4,3077.3,0.001]
[1752607597674,12.80850031,3077.4,3077.3,0.001]
[1752607598096,51.35745097,3077.4,3077.3,0.001]
[1752607598244,52.13535097,3077.4,3077.3,1e-08]
[1752607599376,38.52840031,3077.4,3077.3,1e-08]
[1752607599577,43.58640031,3077.4,3077.3,1e-08]
[1752607599979,13.14900031,3077.4,3077.3,1e-08]
[1752607600277,12.37110031,3077.4,3077.3,1e-08]
[1752607600440,12.80850031,3077.4,3077.3,1e-08]
[1752607601877,13.05688991,3077.4,3077.3,1e-08]
[1752607602647,13.80778991,3077.4,3077.3,1e-08]
[1752607602978,38.74978991,3077.4,3077.3,1e-08]
[1752607603348,43.80778991,3077.4,3077.3,1e-08]
[1752607605175,3.2508696,3076.1,3076.0,1.2293]
[1752607605362,3.25129238,3075.7,3075.6,0.7752]
[1752607605685,3.25129238,3075.7,3075.6,1.2439]
[1752607606260,0.55,3076.0,3075.6,1.2439]
[1752607606464,3.87508696,3076.1,3075.6,0.7752]
[1752607606465,3.25129238,3075.7,3075.6,0.7752]
[1752607606672,3.2512267,3075.8,3075.6,0.7752]
[1752607606988,5.058,3076.2,3075.6,0.7752]
[1752607606989,3.25086736,3076.2,3075.7,0.4687]
[1752607607166,3.25046405,3076.5,3075.8,1.2189]
[1752607607489,3.25046405,3076.5,3075.8,0.7502]
[1752607607490,3.25108098,3075.9,3075.8,0.7502]
[1752607607690,3.0,3075.9,3075.8,0.7502]
[1752607608593,3.0,3075.8,3075.6,0.7502]
[1752607608903,3.0,3075.9,3075.6,1.2189]
[1752607609192,6.25129238,3075.7,3075.6,0.7502]
[1752607609394,6.25150382,3075.5,3075.4,1e-08]
[1752607609785,3.0,3075.5,3075.4,0.46870001]
[1752607610574,3.0,3075.5,3075.4,1e-08]
[1752607611202,6.25150382,3075.5,3075.4,1e-08]
[1752607611412,12.68964052,3075.5,3075.4,1e-08]
[1752607612079,13.45514052,3075.5,3075.4,1e-08]
[1752607612266,3.0,3075.5,3075.4,0.46870001]
[1752607612464,0.130241,3076.3,3076.0,3.2509124]
[1752607612665,0.130241,3076.3,3076.1,1.2482]
[1752607613099,1.0183,3076.2,3075.5,1.2458]
[1752607613299,3.0,3075.7,3075.5,0.7771]
[1752607613505,6.25122684,3075.8,3075.5,1.2458]
[1752607614005,6.25122684,3075.8,3075.5,0.7771]
[1752607614191,6.25150382,3075.5,3075.4,1e-08]
[1752607614392,3.80078976,3076.2,3075.4,1e-08]
[1752607614393,0.55,3076.0,3075.5,1.2246]
[1752607614592,3.0,3075.8,3075.6,0.4687]
[1752607614895,3.0,3076.0,3075.7,0.4687]
[1752607615066,3.25076913,3076.2,3075.7,0.4687]
[1752607615387,5.058,3076.9,3075.8,0.4687]
[1752607615589,3.25076687,3076.2,3075.8,0.4687]
[1752607617379,3.0,3076.8,3076.5,0.4687]
[1752607617616,5.059,3077.2,3076.6,0.4687]
[1752607617817,30.55293,3077.1,3076.4,0.7708]
[1752607617984,3.0,3076.6,3076.4,0.7708]
[1752607618424,6.25044693,3076.5,3076.4,0.7708]
[1752607618585,1.02123,3077.1,3076.1,0.4687]
[1752607618586,4.2453,3076.8,3076.1,0.7708]
[1752607618771,4.2453,3076.8,3075.8,1.2395]
[1752607618772,3.250875,3076.1,3075.8,1.2395]
[1752607619402,6.25080064,3076.2,3075.8,1.2395]
[1752607619609,3.0,3076.6,3076.0,3.25096947]
[1752607619811,3.0,3076.6,3076.0,3.25097151]
[1752607620108,6.25041854,3076.6,3076.1,0.4687]
[1752607620307,6.25041854,3076.6,3076.2,0.4687]
[1752607620504,3.0,3076.7,3076.3,0.7708]
[1752607620740,3.25024237,3076.7,3076.3,1.2395]
[1752607621017,6.25023186,3076.8,3076.4,0.4687]
[1752607621220,3.87518361,3076.8,3076.3,0.7708]
[1752607621515,3.25013298,3076.8,3076.4,0.4687]
[1752607621751,11.86377079,3077.1,3076.5,0.4687]
[1752607621926,8.61393,3077.1,3076.5,0.4687]
[1752607622218,3.0,3076.6,3076.3,0.7708]
[1752607622427,3.25044693,3076.5,3076.3,0.7708]
[1752607623057,3.0,3076.7,3076.3,1.2395]
[1752607623221,6.25032404,3076.7,3076.3,1.2395]
[1752607623537,6.87535644,3076.7,3076.3,0.7708]
[1752607623676,3.25108098,3075.9,3075.8,0.7901]
[1752607623879,6.25108098,3075.9,3075.8,0.7901]
[1752607624176,3.0,3075.9,3075.8,1.2588]
[1752607624618,3.0,3075.9,3075.8,4.50998668]
[1752607624822,3.0,3075.9,3075.8,5.28611461]
[1752607624982,3.0,3077.2,3076.1,0.7871]
[1752607625186,0.7874,3077.3,3076.3,4.0376993]
[1752607625187,3.25003944,3076.9,3076.3,4.0376993]
[1752607625395,3.25029949,3076.7,3076.4,0.4687]
[1752607625815,3.25016198,3076.8,3076.3,0.7871]
[1752607626022,3.25026084,3076.7,3076.5,0.4687]
[1752607626376,3.25017446,3076.8,3076.5,0.4687]
[1752607626836,3.0,3076.6,3076.5,0.4687]
[1752607628004,3.0,3076.7,3076.5,0.4687]
[1752607628207,3.2500705,3076.9,3076.5,0.4687]
[1752607628445,0.002,3077.3,3076.7,0.7744]
[1752607628658,3.24978553,3077.2,3076.7,0.7744]
[1752607628935,3.24978553,3077.2,3076.8,0.4687]
[1752607629115,3.0,3077.1,3076.7,0.7744]
[1752607629299,3.24991903,3077.0,3076.9,0.4687]
[1752607630257,3.24984337,3077.1,3076.9,0.4687]
[1752607630738,3.0,3077.2,3076.7,4.02460714]
[1752607630916,3.0,3077.2,3076.8,0.4687]
[1752607631114,3.25164921,3077.3,3076.9,0.4687]
[1752607631115,3.25165696,3077.3,3076.9,0.4687]
[1752607631312,0.002,3077.3,3077.1,0.8143]
[1752607631544,3.25164224,3077.3,3077.1,1.283]
[1752607631731,0.002,3077.3,3077.1,1.283]
[1752607631932,3.25162579,3077.3,3077.1,1.283]
[1752607632352,3.24970752,3077.2,3077.1,1.283]
[1752607632551,3.0,3077.2,3077.1,1.283]
[1752607633450,0.002,3077.3,3077.1,1.283]
[1752607634318,0.002,3077.3,3077.2,0.4687]
[1752607635021,0.002,3077.3,3077.1,0.8143]
[1752607635222,3.0,3077.2,3077.1,0.8143]
[1752607635712,0.002,3077.3,3077.1,0.8143]
[1752607636020,0.002,3077.3,3077.2,0.4348]
[1752607636825,0.002,3077.3,3077.2,9.54950752]
[1752607637037,0.002,3077.3,3077.2,6.2998]
[1752607637527,0.002,3077.3,3077.2,9.54950752]
[1752607638116,0.002,3077.3,3077.2,6.2998]
[1752607639471,0.002,3077.3,3077.2,9.54950752]
[1752607639924,0.002,3077.3,3077.2,6.2998]
[1752607640757,0.002,3077.3,3077.2,9.54950752]
[1752607641129,0.002,3077.3,3077.2,10.82944922]
[1752607644601,0.002,3077.3,3077.2,6.2988]
[1752607644896,0.002,3077.3,3077.2,9.58100459]
[1752607645106,0.002,3077.3,3077.2,9.54850752]
[1752607645260,0.002,3077.3,3077.2,1.2418]
[1752607645611,3.25160192,3077.3,3076.9,0.8085]
[1752607645798,0.32516019,3077.2,3076.7,7.806]
[1752607645970,0.8207,3077.0,3076.2,0.8085]
[1752607646157,0.8207,3077.0,3076.3,5.056]
[1752607646158,3.25042752,3076.6,3076.3,5.056]
[1752607646493,4.07064504,3077.0,3076.4,0.4348]
[1752607646658,3.0,3076.8,3076.4,0.4348]
[1752607646860,3.25026865,3076.7,3076.4,0.4348]
[1752607647195,3.0,3076.8,3076.3,0.03250658]
[1752607647396,3.25078923,3076.2,3075.9,0.7805]
[1752607647695,6.25108098,3075.9,3075.8,0.001]
[1752607647904,7.12549136,3075.9,3075.8,0.001]
[1752607648121,6.25108098,3075.9,3075.8,0.001]
[1752607649267,6.68848098,3075.9,3075.8,0.001]
[1752607651942,6.25108098,3075.9,3075.8,0.001]
[1752607652869,3.0,3075.9,3075.8,0.001]
[1752607653194,7.51258098,3075.9,3075.8,0.001]
[1752607653497,8.08993323,3075.9,3075.8,0.001]
[1752607653709,4.83885225,3075.9,3075.8,0.001]
[1752607653916,3.0,3075.9,3075.8,0.001]
[1752607654095,38.06258098,3075.9,3075.8,0.001]
[1752607654880,7.07560382,3075.5,3075.4,1e-08]
[1752607655302,7.51300382,3075.5,3075.4,1e-08]
[1752607655477,38.06300382,3075.5,3074.9,1e-08]
[1752607655800,7.07613252,3075.0,3074.9,1e-08]
[1752607656002,37.07613252,3075.0,3074.9,1e-08]
[1752607656180,37.51353252,3075.0,3074.9,1e-08]
[1752607656372,7.51353252,3075.0,3074.9,1e-08]
[1752607657029,7.07613252,3075.0,3074.9,1e-08]
[1752607657179,7.51353252,3075.0,3074.9,1e-08]
[1752607657379,8.5900778,3075.0,3074.9,1e-08]
[1752607658078,3.0,3075.0,3074.9,1e-08]
[1752607658322,3.0,3075.0,3074.9,3.68693829]
[1752607658488,3.25145491,3075.6,3074.9,3.68692294]
[1752607658811,0.4374,3076.0,3075.1,0.7865]
[1752607658812,0.16969292,3076.0,3075.1,0.7865]
[1752607659013,8.55694101,3077.1,3075.9,3.25099924]
[1752607659014,1.04661313,3076.6,3075.9,3.25099924]
[1752607659209,0.47341533,3076.6,3076.0,5.088]
[1752607659415,0.4374,3076.8,3076.0,5.088]
[1752607659604,3.0,3076.4,3076.0,5.8745]
[1752607659911,3.2505608,3076.4,3076.0,5.8745]
[1752607660083,3.0,3076.2,3076.0,5.8745]
[1752607660280,0.8077,3076.2,3075.6,5.088]
[1752607660485,3.25125243,3075.8,3075.6,5.088]
[1752607660800,3.0,3076.0,3075.7,5.087]
[1752607661002,7.49586767,3076.2,3075.7,5.087]
[1752607661201,3.25098687,3076.0,3075.7,5.087]
[1752607661405,6.25118397,3075.9,3075.7,5.087]
[1752607661609,3.25118668,3075.8,3075.7,5.087]
[1752607661912,3.25109157,3075.9,3075.7,5.087]
[1752607662121,3.0,3076.1,3075.7,5.087]
[1752607662703,3.0,3075.9,3075.7,5.087]
[1752607662907,0.4374,3076.5,3075.7,5.5957]
[1752607663097,0.7617,3076.6,3075.7,5.5957]
[1752607663098,3.0,3076.3,3075.9,0.8246]
[1752607663918,3.0,3076.3,3076.0,0.4348]
[1752607664116,3.0,3076.3,3075.9,0.8246]
[1752607664315,3.0,3076.3,3075.9,4.51040722]
[1752607664621,3.0,3076.3,3075.9,1.2594]
[1752607665112,6.25067826,3076.3,3075.9,1.2594]
[1752607665318,3.0,3076.3,3075.9,1.2594]
[1752607665514,3.0,3076.3,3076.0,5.08]
[1752607665817,0.4303,3076.8,3076.1,0.4695]
[1752607666110,3.0,3076.6,3076.1,0.4695]
[1752607666313,3.25054286,3076.5,3076.0,5.08]
[1752607666495,3.0,3076.3,3076.0,5.08]
[1752607666882,3.25092975,3076.1,3075.9,0.8246]
[1752607667086,6.2508696,3076.1,3076.0,5.078]
[1752607667320,3.25097529,3076.0,3075.9,0.8246]
[1752607667523,6.25111353,3075.9,3075.5,1.2941]
[1752607667819,3.2511879,3075.8,3075.6,5.077]
[1752607667991,6.2511291,3075.9,3075.6,5.077]
[1752607668186,3.2512296,3075.8,3075.7,5.076]
[1752607668404,6.2512296,3075.8,3075.7,5.076]
[1752607668599,6.2512296,3075.8,3075.2,3.72124507]
[1752607668600,6.25138358,3075.7,3075.2,0.8246]
[1752607668800,3.25160954,3075.4,3075.3,5.076]
[1752607669324,0.4303,3076.1,3075.5,3.25148552]
[1752607669526,3.0,3075.9,3075.4,3.284086]
[1752607669889,3.0,3076.1,3075.5,3.72099275]
[1752607670086,3.0,3076.1,3075.6,3.25134565]
[1752607670319,3.0,3076.1,3075.7,5.073]
[1752607670523,3.25077491,3076.2,3075.7,5.073]
[1752607670725,3.6188824,3076.2,3075.7,5.073]
[1752607671022,3.0,3075.9,3075.7,5.073]
[1752607671388,3.0,3076.0,3075.7,5.073]
[1752607671588,3.25103999,3076.0,3075.7,5.073]
[1752607672247,3.25087903,3076.1,3075.7,5.073]
[1752607672443,0.4303,3076.4,3075.8,0.4695]
[1752607672649,3.2506816,3076.3,3075.8,0.4695]
[1752607672849,3.2506816,3076.3,3075.9,0.7582]
[1752607673513,3.25083413,3076.2,3075.9,0.7582]
[1752607673712,3.25077894,3076.2,3075.9,0.7582]
[1752607675148,1.38043525,3076.2,3075.8,5.069]
[1752607675347,3.0,3076.1,3075.8,5.069]
[1752607676709,3.25068257,3076.3,3075.8,5.066]
[1752607676934,6.25079221,3076.2,3075.8,5.063]
[1752607677138,3.4303,3076.3,3075.8,8.31411745]
[1752607677441,3.25082604,3076.2,3075.8,5.063]
[1752607678225,3.0,3076.0,3075.8,5.062]
[1752607679052,3.0,3075.8,3075.5,0.7801]
[1752607679211,3.0,3075.8,3075.6,5.06]
[1752607679549,6.25105839,3076.0,3075.6,5.06]
[1752607680044,3.0,3075.8,3075.6,5.06]
[1752607680211,6.68132967,3076.0,3075.6,5.06]
[1752607680615,3.4303,3076.0,3075.6,8.31138763]
[1752607680828,3.4303,3076.0,3075.6,5.06]
[1752607681036,6.68132849,3076.0,3075.6,5.06]
[1752607681225,3.25125132,3075.8,3075.5,0.7801]
[1752607681524,1.2482,3075.9,3075.2,0.778]
[1752607681733,3.0,3075.8,3075.3,5.06]
[1752607682053,6.25114204,3075.9,3075.4,3.25150602]
[1752607682257,3.0,3076.1,3075.3,5.06]
[1752607682461,3.0,3076.0,3075.5,3.72092609]
[1752607682659,3.25096711,3076.1,3075.5,3.72092609]
[1752607682660,3.0,3076.1,3075.6,0.03251398]
[1752607682819,6.25082284,3076.2,3075.7,4.54953969]
[1752607683021,6.25082284,3076.2,3075.7,9.60953969]
[1752607683223,6.25082284,3076.2,3075.7,6.3583]
[1752607683861,3.0,3076.1,3075.7,6.3583]
[1752607684021,6.25095685,3076.1,3075.7,6.3583]
[1752607684215,3.0,3075.9,3075.7,5.8888]
[1752607684423,3.0,3075.8,3075.5,0.793]
[1752607684652,3.251511,3075.5,3075.2,0.793]
[1752607684948,3.25155941,3075.5,3075.2,0.793]
[1752607685245,3.25129238,3075.7,3075.2,0.793]
[1752607685433,3.25142597,3075.6,3075.2,0.793]
[1752607685636,3.25154932,3075.5,3075.2,0.793]
[1752607685944,3.25171527,3075.3,3075.2,5.853]
[1752607686119,3.25162286,3075.4,3075.2,5.853]
[1752607686448,3.25162286,3075.4,3075.2,5.06]
[1752607686747,3.25182101,3075.2,3075.1,0.001]
[1752607686951,7.05862101,3075.2,3075.1,0.001]
[1752607687156,7.48892101,3075.2,3075.1,0.001]
[1752607688866,3.0,3075.2,3075.1,4.07252676]
[1752607689051,3.25089931,3076.1,3075.1,2.23587194]
[1752607689367,3.25089931,3076.1,3075.2,0.50201821]
[1752607689368,3.0,3076.0,3075.2,0.50201821]
[1752607689523,3.25095829,3076.1,3075.5,3.25143659]
[1752607689721,3.25079818,3076.2,3075.6,3.25138246]
[1752607690165,6.25087056,3076.1,3075.6,3.25138246]
[1752607690322,6.25078961,3076.2,3075.5,5.061]
[1752607690665,3.0,3075.8,3075.4,5.061]
[1752607691027,3.0,3075.5,3075.1,0.8206]
[1752607691222,3.0,3075.6,3075.2,5.061]
[1752607691766,6.25142526,3075.6,3075.2,5.061]
[1752607691965,3.0,3075.6,3075.2,5.061]
[1752607692117,0.7564,3075.8,3075.3,3.25171527]
[1752607692320,3.0,3075.9,3075.2,5.061]
[1752607692623,3.25097563,3076.0,3075.4,3.25156086]
[1752607693220,3.25110305,3075.9,3075.4,3.25156086]
[1752607693722,3.25102135,3076.0,3075.4,3.25156086]
[1752607693923,3.25116417,3075.9,3075.3,3.72117782]
[1752607694454,3.25116723,3075.9,3075.3,3.72117782]
[1752607694650,3.25116723,3075.9,3075.4,5.06]
[1752607694950,3.25129615,3075.7,3075.4,5.06]
[1752607695653,6.25123053,3075.8,3075.4,5.06]
[1752607696653,0.4303,3075.9,3075.4,5.06]
[1752607696955,3.68143521,3075.9,3075.4,5.06]
[1752607697146,0.4303,3075.9,3075.4,5.06]
[1752607697751,3.68144143,3075.9,3075.4,8.31155068]